fUSD/lending_fUSD_20250513
["ID","MTS","AMOUNT","RATE_DAILY","PERIOD"]
[360916797,1747144243366,-2369.81,0.00010995,2]
[360916798,1747144243376,-400.0,0.00010995,2]
[360916799,1747144243386,-400.0,0.00010995,2]
[360916800,1747144243395,-500.0,0.00010995,2]
[360916801,1747144243404,-400.0,0.00010995,2]
[360916802,1747144243414,-1719.5,0.00010995,2]
[360916803,1747144243423,-400.0,0.00010995,2]
[360916804,1747144243433,-400.0,0.00010995,2]
[360916805,1747144243442,-400.0,0.00010995,2]
[360916806,1747144243451,-400.0,0.00010995,2]
[360916807,1747144243460,-264.77102643,0.00010995,2]
[360916808,1747144243469,-816.48,0.00010995,2]
[360916809,1747144243478,-400.0,0.00010995,2]
[360916810,1747144243487,-400.0,0.00010995,2]
[360916811,1747144243496,-400.0,0.00010995,2]
[360916812,1747144243505,-400.0,0.00010995,2]
[360916813,1747144243515,-400.0,0.00010995,2]
[360916814,1747144243524,-400.0,0.00010995,2]
[360916815,1747144243533,-400.0,0.00010995,2]
[360916816,1747144243542,-400.0,0.00010995,2]
[360916817,1747144243551,-400.0,0.00010995,2]
[360916818,1747144243560,-668.7,0.00010995,2]
[360916819,1747144243570,-1014.17,0.00010995,2]
[360916820,1747144243580,-400.0,0.00010995,2]
[360916821,1747144243589,-1251.04,0.00010995,2]
[360916822,1747144243598,-411.69785206,0.00010995,2]
[360916823,1747144243607,-400.0,0.00010995,2]
[360916824,1747144243616,-400.0,0.00010995,2]
[360916825,1747144243626,-447.36,0.00010995,2]
[360916826,1747144243637,-400.0,0.00010995,2]
[360916827,1747144243647,-677.25,0.00010995,2]
[360916828,1747144243656,-400.0,0.00010995,2]
[360916829,1747144243666,-400.0,0.00010995,2]
[360916830,1747144243675,-400.0,0.00010995,2]
[360916831,1747144243684,-400.0,0.00010995,2]
[360916832,1747144243694,-400.0,0.00010995,2]
[360916833,1747144243704,-400.0,0.00010995,2]
[360916834,1747144243713,-946.26,0.00010995,2]
[360916836,1747144243722,-400.0,0.00010995,2]
[360916838,1747144243732,-400.0,0.00010995,2]
[360916839,1747144243741,-509.04,0.00010995,2]
[360916841,1747144243750,-508.54,0.00010995,2]
[360916842,1747144243760,-400.0,0.00010995,2]
[360916843,1747144243769,-519.73115026,0.00010995,2]
[360916844,1747144243779,-400.0,0.00010995,2]
[360916845,1747144243789,-1455.78,0.00010995,2]
[360916846,1747144243799,-400.0,0.00010995,2]
[360916847,1747144243808,-400.0,0.00010995,2]
[360916848,1747144243818,-400.0,0.00010995,2]
[360916849,1747144243828,-400.0,0.00010995,2]
[360916850,1747144243837,-400.0,0.00010995,2]
[360916851,1747144243846,-408.19081796,0.00010995,2]
[360916853,1747144243857,-400.0,0.00010995,2]
[360916854,1747144243867,-400.0,0.00010995,2]
[360916855,1747144243878,-400.0,0.00010995,2]
[360916856,1747144243888,-506.85,0.00010995,2]
[360916857,1747144243897,-421.86,0.00010995,2]
[360916858,1747144243907,-400.0,0.00010995,2]
[360916859,1747144243918,-400.0,0.00010995,2]
[360916860,1747144243928,-400.0,0.00010995,2]
[360916861,1747144243938,-483.94,0.00010995,2]
[360916862,1747144243949,-400.0,0.00010995,2]
[360916863,1747144243958,-400.0,0.00010995,2]
[360916864,1747144243967,-400.0,0.00010995,2]
[360916865,1747144243977,-400.0,0.00010995,2]
[360916866,1747144243986,-822.9,0.00010995,2]
[360916867,1747144243995,-400.0,0.00010995,2]
[360916868,1747144244005,-400.0,0.00010995,2]
[360916869,1747144244014,-400.0,0.00010995,2]
[360916870,1747144244024,-400.0,0.00010995,2]
[360916871,1747144244033,-1697.86,0.00010995,2]
[360916872,1747144244043,-400.0,0.00010995,2]
[360916873,1747144244052,-400.0,0.00010995,2]
[360916874,1747144244062,-400.0,0.00010995,2]
[360916875,1747144244071,-842.33,0.00010995,2]
[360916876,1747144244081,-400.0,0.00010995,2]
[360916877,1747144244090,-400.0,0.00010995,2]
[360916878,1747144244100,-420.92271435,0.00010995,2]
[360916879,1747144244109,-1564.94,0.00010995,2]
[360916880,1747144244118,-714.06,0.00010995,2]
[360916881,1747144244128,-400.0,0.00010995,2]
[360916882,1747144244139,-400.0,0.00010995,2]
[360916883,1747144244150,-505.1007295,0.00010995,2]
[360916884,1747144244163,-612.63,0.00010995,2]
[360916886,1747144244172,-441.4,0.00010995,2]
[360916888,1747144244182,-400.0,0.00010995,2]
[360916890,1747144244191,-603.81,0.00010995,2]
[360916892,1747144244203,-400.0,0.00010995,2]
[360916894,1747144244212,-618.07,0.00010995,2]
[360916896,1747144244222,-907.86,0.00010995,2]
[360916898,1747144244232,-400.0,0.00010995,2]
[360916900,1747144244242,-400.0,0.00010995,2]
[360916902,1747144244252,-400.0,0.00010995,2]
[360916904,1747144244262,-408.5,0.00010995,2]
[360916905,1747144244271,-400.0,0.00010995,2]
[360916906,1747144244281,-541.76,0.00010995,2]
[360916907,1747144244291,-629.59,0.00010995,2]
[360916908,1747144244301,-400.0,0.00010995,2]
[360916910,1747144244311,-1170.45,0.00010995,2]
[360916912,1747144244320,-430.88,0.00010995,2]
[360916913,1747144244330,-487.08,0.00010995,2]
[360916915,1747144244340,-400.0,0.00010995,2]
[360916917,1747144244350,-400.0,0.00010995,2]
[360916919,1747144244359,-400.0,0.00010995,2]
[360916921,1747144244369,-400.0,0.00010995,2]
[360916923,1747144244379,-831.1,0.00010995,2]
[360916924,1747144244392,-400.0,0.00010995,2]
[360916925,1747144244401,-671.52,0.00010995,2]
[360916926,1747144244412,-420.32,0.00010995,2]
[360916927,1747144244421,-277.69687403,0.00010995,2]
[360916928,1747144244431,-400.0,0.00010995,2]
[360916929,1747144244441,-448.89,0.00010995,2]
[360916930,1747144244451,-400.0,0.00010995,2]
[360916931,1747144244461,-400.0,0.00010995,2]
[360916932,1747144244470,-400.0,0.00010995,2]
[360916933,1747144244480,-428.82,0.00010995,2]
[360916934,1747144244490,-658.6,0.00010995,2]
[360916935,1747144244499,-400.0,0.00010995,2]
[360916936,1747144244509,-274.20711542,0.00010995,2]
[360916937,1747144244518,-3655.02,0.00010995,2]
[360916938,1747144244528,-865.75,0.00010995,2]
[360916939,1747144244538,-400.0,0.00010995,2]
[360916940,1747144244548,-2594.38,0.00010995,2]
[360916941,1747144244557,-400.0,0.00010995,2]
[360916942,1747144244567,-400.0,0.00010995,2]
[360916943,1747144244577,-400.0,0.00010995,2]
[360916944,1747144244586,-699.07,0.00010995,2]
[360916945,1747144244596,-479.32,0.00010995,2]
[360916946,1747144244607,-400.0,0.00010995,2]
[360916947,1747144244616,-438.98119258,0.00010995,2]
[360916948,1747144244626,-400.0,0.00010995,2]
[360916949,1747144244637,-400.0,0.00010995,2]
[360916950,1747144244646,-531.0,0.00010995,2]
[360916951,1747144244656,-400.0,0.00010995,2]
[360916952,1747144244930,-400.0,0.00010995,2]
[360916953,1747144244940,-400.0,0.00010995,2]
[360916954,1747144244949,-185.65625597,0.00010995,2]
[360916955,1747144244958,-400.0,0.00010995,2]
[360916956,1747144244968,-4336.09,0.00010995,2]
[360916957,1747144244977,-400.0,0.00010995,2]
[360916958,1747144244986,-400.0,0.00010995,2]
[360916959,1747144244995,-1091.24,0.00010995,2]
[360916960,1747144245005,-507.38,0.00010995,2]
[360916961,1747144245014,-400.0,0.00010995,2]
[360916962,1747144245024,-740.48,0.00010995,2]
[360916963,1747144245033,-400.0,0.00010995,2]
[360916964,1747144245042,-400.0,0.00010995,2]
[360916965,1747144245051,-400.0,0.00010995,2]
[360916966,1747144245060,-2971.21,0.00010995,2]
[360916967,1747144245069,-400.0,0.00010995,2]
[360916968,1747144245078,-598.79,0.00010995,2]
[360916969,1747144245087,-572.47,0.00010995,2]
[360916970,1747144245097,-400.0,0.00010995,2]
[360916971,1747144245106,-400.0,0.00010995,2]
[360916972,1747144245115,-492.39802591,0.00010995,2]
[360916973,1747144245125,-737.55,0.00010995,2]
[360916974,1747144245136,-400.0,0.00010995,2]
[360916975,1747144245146,-668.42,0.00010995,2]
[360916976,1747144245158,-400.0,0.00010995,2]
[360916977,1747144245167,-547.66,0.00010995,2]
[360916978,1747144245177,-2793.29,0.00010995,2]
[360916980,1747144245186,-1469.36,0.00010995,2]
[360916982,1747144245195,-400.0,0.00010995,2]
[360916984,1747144245205,-400.0,0.00010995,2]
[360916986,1747144245215,-483.8,0.00010995,2]
[360916988,1747144245224,-399.55820115,0.00010995,2]
[360916990,1747144245233,-400.0,0.00010995,2]
[360916992,1747144245243,-400.0,0.00010995,2]
[360916994,1747144245252,-400.0,0.00010995,2]
[360916996,1747144245262,-426.98694392,0.00010995,2]
[360916998,1747144245271,-533.14,0.00010995,2]
[360916999,1747144245280,-400.0,0.00010995,2]
[360917001,1747144245289,-400.0,0.00010995,2]
[360917003,1747144245299,-2134.61,0.00010995,2]
[360917005,1747144245308,-400.0,0.00010995,2]
[360917007,1747144245319,-1008.32,0.00010995,2]
[360917009,1747144245328,-400.0,0.00010995,2]
[360917012,1747144245337,-421.61,0.00010995,2]
[360917013,1747144245347,-628.86,0.00010995,2]
[360917015,1747144245356,-400.0,0.00010995,2]
[360917017,1747144245365,-400.0,0.00010995,2]
[360917019,1747144245375,-400.0,0.00010995,2]
[360917021,1747144245386,-400.0,0.00010995,2]
[360917023,1747144245395,-400.0,0.00010995,2]
[360917025,1747144245405,-927.38,0.00010995,2]
[360917027,1747144245414,-400.0,0.00010995,2]
[360917029,1747144245423,-400.0,0.00010995,2]
[360917031,1747144245432,-400.0,0.00010995,2]
[360917033,1747144245441,-421.47,0.00010995,2]
[360917035,1747144245451,-1458.49,0.00010995,2]
[360917037,1747144245460,-400.0,0.00010995,2]
[360917039,1747144245469,-400.0,0.00010995,2]
[360917041,1747144245478,-400.0,0.00010995,2]
[360917043,1747144245488,-400.0,0.00010995,2]
[360917045,1747144245497,-400.0,0.00010995,2]
[360917047,1747144245507,-1727.38,0.00010995,2]
[360917049,1747144245516,-400.0,0.00010995,2]
[360917051,1747144245525,-400.0,0.00010995,2]
[360917053,1747144245535,-400.0,0.00010995,2]
[360917055,1747144245544,-400.0,0.00010995,2]
[360917057,1747144245553,-946.55,0.00010995,2]
[360917058,1747144245562,-496.27,0.00010995,2]
[360917060,1747144245571,-400.0,0.00010995,2]
[360917062,1747144245581,-646.75,0.00010995,2]
[360917064,1747144245590,-400.0,0.00010995,2]
[360917066,1747144245599,-400.0,0.00010995,2]
[360917068,1747144245609,-1006.75,0.00010995,2]
[360917070,1747144245618,-851.81,0.00010995,2]
[360917072,1747144245627,-400.0,0.00010995,2]
[360917074,1747144245637,-400.0,0.00010995,2]
[360917076,1747144245646,-400.0,0.00010995,2]
[360917078,1747144245656,-727.37,0.00010995,2]
[360917080,1747144245665,-400.0,0.00010995,2]
[360917082,1747144245674,-400.0,0.00010995,2]
[360917084,1747144245684,-1401.58,0.00010995,2]
[360917086,1747144245693,-1132.13,0.00010995,2]
[360917088,1747144245703,-732.33,0.00010995,2]
[360917089,1747144245713,-400.0,0.00010995,2]
[360917091,1747144245722,-499.0,0.00010995,2]
[360917093,1747144245731,-27032.3,0.00010995,2]
[360917095,1747144245740,-400.0,0.00010995,2]
[360917097,1747144245749,-567.99,0.00010995,2]
[360917099,1747144245759,-1616.42,0.00010995,2]
[360917101,1747144245768,-400.0,0.00010995,2]
[360917103,1747144245778,-400.0,0.00010995,2]
[360917105,1747144245788,-400.0,0.00010995,2]
[360917107,1747144245798,-1078.81,0.00010995,2]
[360917109,1747144245807,-400.0,0.00010995,2]
[360917111,1747144245816,-433.69,0.00010995,2]
[360917113,1747144245826,-581.53,0.00010995,2]
[360917115,1747144245835,-400.0,0.00010995,2]
[360917117,1747144245844,-1409.02,0.00010995,2]
[360917119,1747144245854,-570.76,0.00010995,2]
[360917121,1747144245863,-400.0,0.00010995,2]
[360917123,1747144245872,-716.68,0.00010995,2]
[360917124,1747144245881,-400.0,0.00010995,2]
[360917126,1747144245893,-440.8,0.00010995,2]
[360917127,1747144245903,-400.0,0.00010995,2]
[360917128,1747144245913,-400.0,0.00010995,2]
[360917129,1747144245922,-400.0,0.00010995,2]
[360917130,1747144245932,-461.18,0.00010995,2]
[360917131,1747144245942,-476.74,0.00010995,2]
[360917132,1747144245951,-400.0,0.00010995,2]
[360917133,1747144245960,-1502.96,0.00010995,2]
[360917134,1747144245970,-400.0,0.00010995,2]
[360917135,1747144245979,-887.51,0.00010995,2]
[360917136,1747144245989,-400.0,0.00010995,2]
[360917137,1747144245998,-400.0,0.00010995,2]
[360917138,1747144246007,-400.0,0.00010995,2]
[360917139,1747144246017,-400.0,0.00010995,2]
[360917140,1747144246026,-400.0,0.00010995,2]
[360917141,1747144246036,-400.0,0.00010995,2]
[360917142,1747144246046,-1284.45,0.00010995,2]
[360917143,1747144246055,-928.26,0.00010995,2]
[360917144,1747144246064,-400.0,0.00010995,2]
[360917145,1747144246075,-781.09,0.00010995,2]
[360917146,1747144246084,-400.0,0.00010995,2]
[360917147,1747144246093,-868.51,0.00010995,2]
[360917148,1747144246103,-400.0,0.00010995,2]
[360917149,1747144246113,-5377.04,0.00010995,2]
[360917150,1747144246122,-400.0,0.00010995,2]
[360917151,1747144246131,-669.25,0.00010995,2]
[360917152,1747144246142,-400.0,0.00010995,2]
[360917154,1747144246152,-1326.16,0.00010995,2]
[360917156,1747144246161,-400.0,0.00010995,2]
[360917158,1747144246171,-400.0,0.00010995,2]
[360917160,1747144246180,-1190.97,0.00010995,2]
[360917162,1747144246191,-1466.43,0.00010995,2]
[360917165,1747144246200,-400.0,0.00010995,2]
[360917168,1747144246210,-400.0,0.00010995,2]
[360917171,1747144246219,-10040.51,0.00010995,2]
[360917174,1747144246230,-2846.83,0.00010995,2]
[360917177,1747144246239,-529.18,0.00010995,2]
[360917180,1747144246248,-1544.34,0.00010995,2]
[360917182,1747144246258,-400.0,0.00010995,2]
[360917184,1747144246267,-453.39,0.00010995,2]
[360917186,1747144246277,-400.0,0.00010995,2]
[360917188,1747144246286,-622.4,0.00010995,2]
[360917190,1747144246295,-641.49,0.00010995,2]
[360917192,1747144246305,-400.0,0.00010995,2]
[360917195,1747144246314,-168.29708641,0.00010995,2]
[360917197,1747144246323,-400.0,0.00010995,2]
[360917199,1747144246333,-730.8,0.00010995,2]
[360917201,1747144246342,-614.64,0.00010995,2]
[360917203,1747144246351,-4818.37,0.00010995,2]
[360917205,1747144246360,-596.46,0.00010995,2]
[360917207,1747144246370,-400.0,0.00010995,2]
[360917209,1747144246379,-520.7,0.00010995,2]
[360917211,1747144246390,-3466.66,0.00010995,2]
[360917213,1747144246399,-544.17,0.00010995,2]
[360917215,1747144246408,-498.29,0.00010995,2]
[360917217,1747144246417,-400.0,0.00010995,2]
[360917219,1747144246427,-1552.12,0.00010995,2]
[360917221,1747144246436,-400.0,0.00010995,2]
[360917223,1747144246445,-400.0,0.00010995,2]
[360917225,1747144246454,-400.0,0.00010995,2]
[360917227,1747144246463,-400.0,0.00010995,2]
[360917229,1747144246473,-4454.23,0.00010995,2]
[360917231,1747144246482,-400.0,0.00010995,2]
[360917233,1747144246492,-400.0,0.00010995,2]
[360917235,1747144246502,-400.0,0.00010995,2]
[360917237,1747144246511,-400.0,0.00010995,2]
[360917239,1747144246521,-759.3,0.00010995,2]
[360917241,1747144246531,-802.94,0.00010995,2]
[360917243,1747144246540,-400.0,0.00010995,2]
[360917245,1747144246549,-400.0,0.00010995,2]
[360917247,1747144246558,-400.0,0.00010995,2]
[360917249,1747144246568,-1442.36,0.00010995,2]
[360917251,1747144246579,-1390.82,0.00010995,2]
[360917253,1747144246588,-424.46,0.00010995,2]
[360917255,1747144246597,-3323.42,0.00010995,2]
[360917257,1747144246607,-400.0,0.00010995,2]
[360917259,1747144246616,-404.45081963,0.00010995,2]
[360917261,1747144246625,-500.0,0.00010995,2]
[360917263,1747144246634,-1821.78,0.00010995,2]
[360917265,1747144246646,-400.0,0.00010995,2]
[360917266,1747144246655,-589.46,0.00010995,2]
[360917267,1747144246664,-1403.39,0.00010995,2]
[360917268,1747144246674,-11127.97,0.00010995,2]
[360917269,1747144246683,-938.84,0.00010995,2]
[360917270,1747144246692,-501.53,0.00010995,2]
[360917271,1747144246701,-680.24,0.00010995,2]
[360917272,1747144246711,-1377.58,0.00010995,2]
[360917273,1747144246720,-601.88,0.00010995,2]
[360917274,1747144246729,-996.65,0.00010995,2]
[360917275,1747144246739,-2238.8,0.00010995,2]
[360917276,1747144246748,-400.0,0.00010995,2]
[360917277,1747144246757,-1000.0,0.00010995,2]
[360917278,1747144246767,-4525.31,0.00010995,2]
[360917279,1747144246776,-610.19,0.00010995,2]
[360917280,1747144246785,-400.0,0.00010995,2]
[360917281,1747144246794,-400.0,0.00010995,2]
[360917282,1747144246804,-400.0,0.00010995,2]
[360917283,1747144246813,-970.56,0.00010995,2]
[360917284,1747144246823,-701.45,0.00010995,2]
[360917285,1747144246832,-400.0,0.00010995,2]
[360917286,1747144246842,-400.0,0.00010995,2]
[360917287,1747144246852,-400.0,0.00010995,2]
[360917288,1747144246861,-645.64,0.00010995,2]
[360917289,1747144246870,-2950.04,0.00010995,2]
[360917290,1747144246880,-400.0,0.00010995,2]
[360917291,1747144246890,-400.0,0.00010995,2]
[360917292,1747144246900,-641.47,0.00010995,2]
[360917293,1747144246909,-542.68,0.00010995,2]
[360917294,1747144246919,-1071.07,0.00010995,2]
[360917295,1747144246929,-400.0,0.00010995,2]
[360917296,1747144246938,-618.13,0.00010995,2]
[360917297,1747144246948,-530.87,0.00010995,2]
[360917298,1747144246957,-2286.38,0.00010995,2]
[360917299,1747144246967,-400.0,0.00010995,2]
[360917300,1747144246977,-2236.75,0.00010995,2]
[360917301,1747144246987,-418.52,0.00010995,2]
[360917302,1747144246997,-400.0,0.00010995,2]
[360917303,1747144247007,-400.0,0.00010995,2]
[360917304,1747144247017,-400.0,0.00010995,2]
[360917305,1747144247027,-199.06386636,0.00010995,2]
[360917306,1747144247036,-1943.0,0.00010995,2]
[360917307,1747144247045,-400.0,0.00010995,2]
[360917308,1747144247055,-2092.97,0.00010995,2]
[360917309,1747144247065,-699.52,0.00010995,2]
[360917311,1747144247074,-1800.21,0.00010995,2]
[360917313,1747144247083,-677.81,0.00010995,2]
[360917314,1747144247093,-403.67556797,0.00010995,2]
[360917315,1747144247103,-514.97,0.00010995,2]
[360917317,1747144247112,-1440.88,0.00010995,2]
[360917319,1747144247121,-400.0,0.00010995,2]
[360917321,1747144247130,-400.0,0.00010995,2]
[360917323,1747144247140,-400.0,0.00010995,2]
[360917325,1747144247149,-469.8,0.00010995,2]
[360917327,1747144247160,-1376.24,0.00010995,2]
[360917329,1747144247170,-409.71,0.00010995,2]
[360917331,1747144247179,-400.0,0.00010995,2]
[360917333,1747144247188,-517.39,0.00010995,2]
[360917335,1747144247198,-1443.85,0.00010995,2]
[360917336,1747144247207,-400.0,0.00010995,2]
[360917338,1747144247216,-400.0,0.00010995,2]
[360917340,1747144247226,-400.0,0.00010995,2]
[360917341,1747144247236,-673.92,0.00010995,2]
[360917343,1747144247245,-406.61,0.00010995,2]
[360917345,1747144247254,-656.14,0.00010995,2]
[360917347,1747144247264,-400.0,0.00010995,2]
[360917349,1747144247273,-400.0,0.00010995,2]
[360917351,1747144247282,-400.0,0.00010995,2]
[360917352,1747144247292,-400.0,0.00010995,2]
[360917355,1747144247302,-289.21193616,0.00010995,2]
[360917356,1747144247311,-400.0,0.00010995,2]
[360917358,1747144247320,-400.0,0.00010995,2]
[360917360,1747144247330,-1383.86,0.00010995,2]
[360917362,1747144247339,-400.0,0.00010995,2]
[360917364,1747144247348,-400.0,0.00010995,2]
[360917366,1747144247358,-1048.57,0.00010995,2]
[360917368,1747144247367,-1430.03,0.00010995,2]
[360917370,1747144247376,-400.0,0.00010995,2]
[360917372,1747144247386,-400.0,0.00010995,2]
[360917374,1747144247396,-1423.92,0.00010995,2]
[360917376,1747144247406,-400.0,0.00010995,2]
[360917378,1747144247415,-614.72,0.00010995,2]
[360917380,1747144247424,-400.0,0.00010995,2]
[360917382,1747144247434,-1926.83,0.00010995,2]
[360917384,1747144247444,-400.0,0.00010995,2]
[360917386,1747144247453,-400.0,0.00010995,2]
[360917388,1747144247463,-400.0,0.00010995,2]
[360917390,1747144247472,-792.66,0.00010995,2]
[360917392,1747144247481,-1365.77,0.00010995,2]
[360917394,1747144247491,-474.31,0.00010995,2]
[360917396,1747144247500,-400.0,0.00010995,2]
[360917398,1747144247509,-2909.59,0.00010995,2]
[360917400,1747144247519,-1846.52,0.00010995,2]
[360917402,1747144247528,-188.27929074,0.00010995,2]
[360917404,1747144247540,-400.0,0.00010995,2]
[360917406,1747144247549,-400.0,0.00010995,2]
[360917408,1747144247558,-400.0,0.00010995,2]
[360917410,1747144247567,-400.0,0.00010995,2]
[360917412,1747144247577,-1663.16,0.00010995,2]
[360917414,1747144247587,-400.0,0.00010995,2]
[360917416,1747144247596,-400.0,0.00010995,2]
[360917417,1747144247605,-400.0,0.00010996,2]
[360917418,1747144247614,-400.0,0.00010996,2]
[360917419,1747144247623,-1210.16,0.00010996,2]
[360917420,1747144247633,-400.0,0.00010996,2]
[360917421,1747144247645,-400.0,0.00010996,2]
[360917422,1747144247654,-1362.64,0.00010996,2]
[360917423,1747144247663,-400.0,0.00010996,2]
[360917424,1747144247674,-400.0,0.00010996,2]
[360917425,1747144247683,-400.0,0.00010996,2]
[360917426,1747144247693,-400.0,0.00010996,2]
[360917427,1747144247702,-400.0,0.00010996,2]
[360917428,1747144247712,-1652.19,0.00010996,2]
[360917429,1747144247722,-536.7719813,0.00010996,2]
[360917430,1747144247731,-400.0,0.00010996,2]
[360917431,1747144247742,-400.15966007,0.00010996,2]
[360917432,1747144247752,-489.29046248,0.00010996,2]
[360917433,1747144247762,-400.0,0.00010996,2]
[360917434,1747144247771,-400.0,0.00010996,2]
[360917435,1747144247781,-400.0,0.00010996,2]
[360917436,1747144247791,-400.0,0.00010996,2]
[360917437,1747144247801,-400.0,0.00010996,2]
[360917438,1747144247811,-400.0,0.00010996,2]
[360917439,1747144247820,-400.0,0.00010996,2]
[360917440,1747144247829,-489.37748451,0.00010996,2]
[360917441,1747144247839,-576.92,0.00010996,2]
[360917442,1747144247848,-400.0,0.00010996,2]
[360917443,1747144247858,-400.0,0.00010996,2]
[360917444,1747144247868,-632.14,0.00010996,2]
[360917445,1747144247878,-400.0,0.00010996,2]
[360917446,1747144247887,-431.217014,0.00010996,2]
[360917447,1747144247898,-917.81,0.00010996,2]
[360917448,1747144247908,-400.0,0.00010996,2]
[360917449,1747144247918,-902.58,0.00010996,2]
[360917450,1747144247927,-400.0,0.00010996,2]
[360917451,1747144247937,-400.0,0.00010996,2]
[360917452,1747144247947,-400.0,0.00010996,2]
[360917453,1747144247957,-343.13344437,0.00010996,2]
[360917454,1747144247967,-400.0,0.00010996,2]
[360917455,1747144247977,-400.0,0.00010996,2]
[360917456,1747144247986,-400.0,0.00010996,2]
[360917457,1747144247997,-758.16,0.00010996,2]
[360917458,1747144248006,-400.0,0.00010996,2]
[360917459,1747144248016,-400.0,0.00010996,2]
[360917460,1747144248026,-400.0,0.00010996,2]
[360917461,1747144248036,-400.0,0.00010996,2]
[360917462,1747144248047,-400.0,0.00010996,2]
[360917463,1747144248057,-1096.89,0.00010996,2]
[360917464,1747144248067,-400.0,0.00010996,2]
[360917465,1747144248077,-400.0,0.00010996,2]
[360917466,1747144248087,-400.0,0.00010996,2]
[360917467,1747144248097,-400.0,0.00010996,2]
[360917468,1747144248106,-400.0,0.00010996,2]
[360917469,1747144248116,-598.89,0.00010996,2]
[360917470,1747144248126,-400.0,0.00010996,2]
[360917471,1747144248137,-400.0,0.00010996,2]
[360917472,1747144248150,-2334.43,0.00010996,2]
[360917473,1747144248159,-547.15,0.00010996,2]
[360917474,1747144248169,-767.6,0.00010996,2]
[360917475,1747144248179,-1044.09,0.00010996,2]
[360917476,1747144248190,-802.4,0.00010996,2]
[360917477,1747144248200,-400.0,0.00010996,2]
[360917478,1747144248209,-791.34,0.00010996,2]
[360917479,1747144248220,-1958.96,0.00010996,2]
[360917480,1747144248231,-417.45,0.00010996,2]
[360917481,1747144248241,-1631.55,0.00010996,2]
[360917482,1747144248250,-1446.39,0.00010996,2]
[360917483,1747144248265,-529.27,0.00010996,2]
[360917484,1747144248275,-400.0,0.00010996,2]
[360917485,1747144248285,-1593.77,0.00010996,2]
[360917486,1747144248295,-400.0,0.00010996,2]
[360917487,1747144248305,-400.0,0.00010996,2]
[360917488,1747144248316,-400.0,0.00010996,2]
[360917489,1747144248326,-2196.36,0.00010996,2]
[360917490,1747144248336,-1422.22,0.00010996,2]
[360917491,1747144248346,-607.79,0.00010996,2]
[360917492,1747144248357,-812.29,0.00010996,2]
[360917493,1747144248367,-2563.52,0.00010996,2]
[360917494,1747144248377,-3133.48,0.00010996,2]
[360917495,1747144248387,-2587.38,0.00010996,2]
[360917496,1747144248401,-2887.47,0.00010996,2]
[360917497,1747144248411,-2083.14,0.00010996,2]
[360917498,1747144248422,-2024.92,0.00010996,2]
[360917499,1747144248432,-5605.24,0.00010996,2]
[360917500,1747144248442,-1725.6,0.00010996,2]